bitfinex/quotes_SOLUSD_20250518
["timestamp","ask_amount","ask_price","bid_price","bid_amount"]
[1747600017856,54.67486682,165.79,165.69,1.20685984]
[1747600018062,28.67486682,165.78,165.69,1.20685984]
[1747600019058,28.67486682,165.77,165.68,51.303718]
[1747600019258,28.67486682,165.78,165.69,1.20678707]
[1747600019654,28.67486682,165.77,165.7,21.12251055]
[1747600020366,28.67486682,165.77,165.67,45.85642986]
[1747600020367,28.67486682,165.71,165.66,6.03646021]
[1747600020568,28.67486682,165.7,165.66,6.03646021]
[1747600020867,28.67486682,165.72,165.66,21.12761075]
[1747600021242,0.90404577,165.73,165.66,21.12761075]
[1747600021542,28.67486682,165.72,165.66,21.12761075]
[1747600021764,28.67486682,165.72,165.66,15.09115054]
[1747600022469,0.90404577,165.73,165.66,15.09115054]
[1747600022642,28.67486682,165.72,165.66,15.09115054]
[1747600023045,29.57891259,165.71,165.66,15.09115054]
[1747600023252,28.67486682,165.72,165.66,15.09115054]
[1747600023450,110.87891259,165.73,165.66,15.09115054]
[1747600023969,26.0,165.7,165.64,22.14702762]
[1747600024174,28.67486682,165.68,165.64,22.14702762]
[1747600024375,28.67486682,165.69,165.64,22.14702762]
[1747600024572,0.90404577,165.68,165.64,28.18414848]
[1747600024776,26.0,165.7,165.64,28.18414848]
[1747600025081,54.67486682,165.7,165.64,28.18414848]
[1747600025259,28.67486682,165.69,165.64,28.18414848]
[1747600025775,28.67486682,165.68,165.64,28.18414848]
[1747600025954,4.99238307,165.68,165.64,43.27712119]
[1747600026271,28.67486682,165.7,165.64,43.27712119]
[1747600026769,28.67486682,165.69,165.64,43.27712119]
[1747600026961,28.67486682,165.68,165.64,43.27712119]
[1747600027373,28.67486682,165.69,165.64,43.27712119]
[1747600027564,26.0,165.71,165.64,43.27712119]
[1747600027565,33.73308603,165.7,165.64,43.27712119]
[1747600027753,28.67486682,165.69,165.64,43.27712119]
[1747600027954,28.67486682,165.68,165.64,43.27712119]
[1747600028150,28.67486682,165.67,165.64,28.18414848]
[1747600028357,28.67486682,165.65,165.64,22.14702762]
[1747600028553,28.67486682,165.65,165.57,3.7106]
[1747600028756,28.67486682,165.59,165.54,6.04083605]
[1747600028965,28.67486682,165.59,165.54,21.14292617]
[1747600029171,28.67486682,165.58,165.54,6.04083605]
[1747600029379,28.67486682,165.56,165.54,6.04083605]
[1747600029578,28.67486682,165.57,165.54,6.04083605]
[1747600029877,28.67486682,165.59,165.54,6.04083605]
[1747600030181,5.11394175,165.59,165.54,6.04083605]
[1747600030470,26.0,165.62,165.54,21.14292617]
[1747600030471,28.67486682,165.61,165.54,21.14292617]
[1747600030677,28.67486682,165.59,165.54,21.14292617]
[1747600030878,28.67486682,165.59,165.54,15.10209012]
[1747600031263,28.67486682,165.6,165.54,15.10209012]
[1747600031677,28.67486682,165.61,165.54,15.10209012]
[1747600032181,28.67486682,165.6,165.54,15.10209012]
[1747600032480,33.71284657,165.62,165.55,1.20795265]
[1747600032678,5.03797975,165.62,165.54,41.10209012]
[1747600032884,28.67486682,165.63,165.54,41.10209012]
[1747600033189,28.67486682,165.62,165.54,41.10209012]
[1747600033855,33.61050317,165.62,165.54,41.10209012]
[1747600034051,28.67486682,165.59,165.53,6.04120099]
[1747600034257,28.67486682,165.56,165.52,6.04156597]
[1747600035176,0.90404577,165.59,165.52,21.1454809]
[1747600035385,28.67486682,165.6,165.52,21.1454809]
[1747600035993,28.67486682,165.59,165.52,21.1454809]
[1747600036992,28.67486682,165.58,165.52,21.1454809]
[1747600037365,28.67486682,165.56,165.52,6.04156597]
[1747600037779,28.67486682,165.53,165.49,6.04266118]
[1747600038087,28.67486682,165.5,165.47,6.04339155]
[1747600038270,28.67486682,165.48,165.46,6.04375679]
[1747600039077,26.0,165.52,165.46,6.04375679]
[1747600039276,28.67486682,165.5,165.46,6.04375679]
[1747600039484,28.67486682,165.49,165.46,6.04375679]
[1747600040691,28.67486682,165.48,165.46,6.04375679]
[1747600040986,31.90774585,165.53,165.46,6.04375679]
[1747600040987,28.67486682,165.47,165.46,6.04375679]
[1747600041191,28.67486682,165.47,165.45,28.21774676]
[1747600041392,28.67486682,165.46,165.45,22.17372141]
[1747600041990,7.1571,165.51,165.45,22.17372141]
[1747600042189,5.00370008,165.53,165.45,28.2178435]
[1747600042389,28.67486682,165.53,165.45,28.2178435]
[1747600042600,28.67486682,165.5,165.45,43.32814872]
[1747600042892,28.67486682,165.49,165.45,28.2178435]
[1747600043399,28.67486682,165.5,165.45,28.2178435]
[1747600044374,28.67486682,165.49,165.45,28.2178435]
[1747600044874,28.67486682,165.47,165.45,22.17372141]
[1747600045081,28.67486682,165.46,165.45,22.17372141]
[1747600045277,0.90404577,165.5,165.45,22.17372141]
[1747600045482,28.67486682,165.48,165.45,22.17372141]
[1747600045870,0.90404577,165.5,165.45,28.21777119]
[1747600046203,28.67486682,165.49,165.45,28.21777119]
[1747600046503,26.0,165.51,165.45,28.21777119]
[1747600046992,28.67486682,165.5,165.45,28.21777119]
[1747600047321,28.67486682,165.49,165.45,28.21777119]
[1747600047603,26.0,165.51,165.45,28.21777119]
[1747600047770,28.67486682,165.5,165.45,28.21777119]
[1747600047975,18.11,165.43,165.28,22.15300543]
[1747600048176,30.18788884,165.42,165.25,3.4557]
[1747600048401,86.12948708,165.48,165.26,32.00653759]
[1747600048698,1.51144017,165.47,165.27,62.91634815]
[1747600048993,84.61693007,165.48,165.33,3.6576]
[1747600049213,84.61693007,165.48,165.34,23.26556382]
[1747600049373,28.67486682,165.46,165.34,23.26556382]
[1747600049575,28.67486682,165.44,165.34,23.26556382]
[1747600049774,28.67486682,165.44,165.34,0.90921567]
[1747600049973,84.61693007,165.48,165.35,18.64964886]
[1747600050181,28.67486682,165.46,165.38,21.1633813]
[1747600050374,28.67486682,165.45,165.39,0.90925286]
[1747600050598,28.67486682,165.44,165.39,0.90925286]
[1747600051098,28.67486682,165.45,165.39,0.90925286]
[1747600051296,84.61693007,165.48,165.39,0.90925286]
[1747600051482,84.61693007,165.48,165.4,18.64964886]
[1747600051802,84.61693007,165.48,165.41,0.90912022]
[1747600051994,128.09377841,165.48,165.41,0.90912022]
[1747600052293,84.61693007,165.48,165.42,6.04521823]
[1747600052595,43.47684834,165.47,165.42,6.04521823]
[1747600053070,43.47684834,165.46,165.42,6.04521823]
[1747600053477,43.47684834,165.47,165.42,6.04521823]
[1747600053715,84.61693007,165.48,165.42,6.04521823]
[1747600053878,43.47684834,165.46,165.42,6.04521823]
[1747600054081,43.47684834,165.47,165.42,6.04521823]
[1747600054976,43.47684834,165.46,165.42,6.04521823]
[1747600055580,43.47684834,165.44,165.42,6.04521823]
[1747600055982,43.47684834,165.45,165.42,6.04521823]
[1747600057306,43.47684834,165.45,165.41,6.0455837]
[1747600057704,43.47684834,165.44,165.41,6.0455837]
[1747600057900,84.61693007,165.48,165.41,21.15954295]
[1747600058089,43.47684834,165.47,165.41,22.06883639]
[1747600058286,84.61693007,165.48,165.41,22.06883639]
[1747600058496,84.61693007,165.48,165.42,44.64964886]
[1747600058703,84.61693007,165.48,165.43,0.90880821]
[1747600059686,84.61693007,165.48,165.44,21.15570598]
[1747600060503,35.50577904,165.53,165.45,26.90880473]
[1747600060504,30.64,165.53,165.45,26.90880473]
[1747600060704,30.64,165.53,165.47,26.0]
[1747600060886,43.47684834,165.52,165.47,26.0]
[1747600061097,43.47684834,165.53,165.48,0.90820866]
[1747600061303,9.07234754,165.58,165.48,0.90820866]
[1747600061923,43.47684834,165.52,165.49,6.04266118]
[1747600062084,43.47684834,165.5,165.46,6.04375679]
[1747600062408,43.47684834,165.48,165.46,6.04375679]
[1747600063207,43.47684834,165.47,165.44,21.15540609]
[1747600063778,1.51081445,165.53,165.44,21.15540609]
[1747600063779,43.47684834,165.48,165.44,21.15540609]
[1747600063984,43.47684834,165.5,165.44,21.15540609]
[1747600064887,43.47684834,165.5,165.44,24.10378832]
[1747600065200,44.64964886,165.56,165.45,0.90882452]
[1747600065399,1.5107419,165.57,165.45,0.90882452]
[1747600065714,43.47684834,165.54,165.47,26.0]
[1747600066011,43.47684834,165.52,165.47,26.0]
[1747600066710,43.47684834,165.52,165.48,6.04302634]
[1747600069606,43.47684834,165.52,165.48,21.1505922]
[1747600069799,43.47684834,165.5,165.48,6.04302634]
[1747600070006,43.47684834,165.5,165.45,21.15393895]
[1747600070202,43.47684834,165.51,165.45,21.15393895]
[1747600070614,1.51049172,165.56,165.46,0.90870593]
[1747600070790,43.47684834,165.54,165.46,0.90870593]
[1747600071110,26.0,165.57,165.47,18.64964886]
[1747600071111,43.47684834,165.55,165.47,18.64964886]
[1747600071308,43.47684834,165.55,165.5,26.0]
[1747600071502,43.47684834,165.56,165.5,26.0]
[1747600071705,7.562,165.58,165.5,26.0]
[1747600071894,28.6445397,165.56,165.5,26.0]
[1747600072089,28.6445397,165.56,165.51,21.1467585]
[1747600072291,28.6445397,165.55,165.51,6.041931]
[1747600072547,1.51019064,165.57,165.51,6.041931]
[1747600072815,28.6445397,165.54,165.51,6.041931]
[1747600073423,1.51019064,165.57,165.51,6.041931]
[1747600073588,6.8763,165.65,165.55,26.0]
[1747600073785,7.64595594,165.67,165.56,19.55644073]
[1747600074088,32.78349564,165.67,165.6,21.13526569]
[1747600074506,32.78349564,165.67,165.6,22.04148355]
[1747600074986,4.13895594,165.67,165.6,22.04148355]
[1747600075921,28.6445397,165.68,165.6,22.04148355]
[1747600076834,6.8763,165.69,165.6,22.04148355]
[1747600077124,35.5208397,165.69,165.6,22.04148355]
[1747600077290,30.32,165.71,165.63,26.0]
[1747600077485,28.6445397,165.7,165.63,26.0]
[1747600077889,28.6445397,165.7,165.64,26.0]
[1747600078090,58.9645397,165.71,165.64,26.90509583]
[1747600078321,28.6445397,165.72,165.64,26.90509583]
[1747600078518,27.50891308,165.75,165.64,26.90509583]
[1747600078519,1.50891308,165.75,165.64,26.90509583]
[1747600078813,28.6445397,165.74,165.65,40.79540921]
[1747600079004,28.6445397,165.74,165.66,22.03221727]
[1747600079417,9.04902091,165.77,165.66,22.03221727]
[1747600079606,28.6445397,165.76,165.66,22.03221727]
[1747600079807,7.5402,165.77,165.66,22.03221727]
[1747600080003,28.6445397,165.75,165.66,22.03221727]
[1747600080401,28.6445397,165.74,165.66,22.03221727]
[1747600081219,28.6445397,165.72,165.66,6.94106673]
[1747600081520,1.50857207,165.76,165.66,6.03646021]
[1747600081521,7.54146414,165.76,165.66,6.03646021]
[1747600081699,28.6445397,165.73,165.66,6.03646021]
[1747600081901,28.6445397,165.73,165.66,21.12761075]
[1747600082407,28.6445397,165.71,165.66,6.03646021]
[1747600083421,20.15822093,165.76,165.66,6.03646021]
[1747600083714,1.50857207,165.76,165.66,21.12761075]
[1747600083917,28.6445397,165.73,165.66,21.12761075]
[1747600084717,13.57279209,165.77,165.66,21.12761075]
[1747600084718,28.6445397,165.75,165.67,0.9047506]
[1747600084920,28.6445397,165.75,165.67,26.9047506]
[1747600085419,28.6445397,165.74,165.68,47.12506035]
[1747600087013,7.5402,165.77,165.68,47.12506035]
[1747600087214,28.6445397,165.74,165.68,47.12506035]
[1747600088528,7.5402,165.77,165.68,47.12506035]
[1747600088827,28.6445397,165.74,165.68,47.12506035]
[1747600090425,28.6445397,165.75,165.68,47.12506035]
[1747600090813,28.6445397,165.77,165.69,0.90445363]
[1747600091830,7.0753,165.86,165.75,26.0]
[1747600092038,28.6445397,165.83,165.76,21.11486486]
[1747600092220,28.6445397,165.82,165.76,21.11486486]
[1747600094334,28.6445397,165.83,165.76,21.11486486]
[1747600094934,28.6445397,165.82,165.76,21.11486486]
[1747600095312,28.6445397,165.81,165.76,21.11486486]
[1747600095738,28.6445397,165.82,165.76,21.11486486]
[1747600096136,8.58309059,165.86,165.76,21.11486486]
[1747600096431,28.6445397,165.84,165.76,51.27895752]
[1747600096737,28.6445397,165.83,165.76,51.27895752]
[1747600096927,8.58309059,165.86,165.76,51.27895752]
[1747600097126,28.6445397,165.83,165.76,51.27895752]
[1747600098752,28.6445397,165.84,165.76,51.27895752]
[1747600098944,7.0753,165.86,165.77,0.9026451]
[1747600099122,28.6445397,165.86,165.79,26.0]
[1747600099318,28.6445397,165.85,165.79,26.0]
[1747600100144,28.6445397,165.85,165.8,21.1097708]
[1747600100434,28.6445397,165.83,165.8,21.1097708]
[1747600101034,28.6445397,165.83,165.8,6.03136308]
[1747600102936,28.6445397,165.84,165.8,6.03136308]
[1747600103145,31.78773676,165.88,165.8,21.1097708]
[1747600103444,28.6445397,165.83,165.8,21.1097708]
[1747600103634,28.6445397,165.83,165.8,6.03136308]
[1747600103832,28.6445397,165.81,165.8,6.03136308]
[1747600104038,1.50772688,165.86,165.8,6.03136308]
[1747600104235,28.6445397,165.85,165.8,6.03136308]
[1747600104437,28.6445397,165.85,165.8,21.1097708]
[1747600104829,28.6445397,165.84,165.8,21.1097708]
[1747600105328,28.6445397,165.82,165.78,6.03209072]
[1747600105526,1.50780328,165.86,165.78,6.03209072]
[1747600105736,28.6445397,165.82,165.78,6.03209072]
[1747600106241,28.6445397,165.83,165.78,21.11231752]
[1747600107140,28.6445397,165.84,165.78,21.11231752]
[1747600107343,31.78777351,165.88,165.78,15.0802268]
[1747600107559,31.78777351,165.88,165.78,15.98292588]
[1747600107745,28.6445397,165.86,165.79,26.0]
[1747600108325,28.6445397,165.85,165.79,26.0]
[1747600108625,58.9245397,165.88,165.81,48.1236634]
[1747600108825,30.28,165.88,165.81,48.1236634]
[1747600109036,58.9245397,165.88,165.81,48.1236634]
[1747600109241,30.28,165.88,165.82,21.10722469]
[1747600109846,28.6445397,165.9,165.82,21.10722469]
[1747600110223,6.983,165.94,165.83,19.55126745]
[1747600110424,35.6275397,165.94,165.86,26.0]
[1747600110949,28.6445397,165.93,165.86,26.0]
[1747600111336,28.6445397,165.93,165.87,6.02881774]
[1747600111742,28.6445397,165.93,165.87,21.10086211]
[1747600111947,28.6445397,165.91,165.87,6.02881774]
[1747600112145,28.6445397,165.89,165.87,6.02881774]
[1747600112456,28.6445397,165.88,165.87,6.02881774]
[1747600113150,28.6445397,165.88,165.84,15.07420904]
[1747600113524,1.50696572,165.94,165.84,6.02990834]
[1747600113525,28.6445397,165.86,165.84,6.02990834]
[1747600114632,28.6445397,165.85,165.82,6.03063562]
[1747600114840,28.6445397,165.84,165.82,6.03063562]
[1747600115050,28.6445397,165.83,165.82,6.03063562]
[1747600115256,1.50761889,165.88,165.81,28.15454832]
[1747600115436,28.6445397,165.84,165.81,28.15454832]
[1747600115628,28.6445397,165.83,165.81,28.15454832]
[1747600115947,28.6445397,165.84,165.81,28.15454832]
[1747600116356,28.6445397,165.83,165.81,28.15454832]
[1747600116952,28.6445397,165.83,165.74,30.18374443]
[1747600116953,28.6445397,165.82,165.75,15.08241936]
[1747600117132,18.64964886,165.85,165.75,15.08241936]
[1747600117328,28.6445397,165.8,165.75,15.08241936]
[1747600117654,1.50805252,165.84,165.75,15.08241936]
[1747600117830,28.6445397,165.8,165.75,15.08241936]
[1747600118023,28.6445397,165.79,165.73,35.07200462]
[1747600118229,28.6445397,165.77,165.73,32.03391057]
[1747600118438,28.6445397,165.77,165.73,6.03391057]
[1747600118635,18.64964886,165.83,165.73,6.03391057]
[1747600118837,28.6445397,165.78,165.73,47.11868701]
[1747600119255,28.6445397,165.8,165.73,47.11868701]
[1747600119454,28.6445397,165.79,165.73,47.11868701]
[1747600119653,1.50819417,165.85,165.76,26.0]
[1747600119950,28.6445397,165.84,165.76,26.0]
[1747600120153,1.50819417,165.85,165.76,26.0]
[1747600120370,1.50777077,165.87,165.8,26.0]
[1747600120535,28.6445397,165.88,165.8,26.0]
[1747600121239,28.6445397,165.87,165.8,26.0]
[1747600121436,35.8838397,165.89,165.8,26.0]
[1747600121642,28.6445397,165.9,165.82,21.10722469]
[1747600121847,28.6445397,165.91,165.82,21.10722469]
[1747600122463,1.50737853,165.92,165.82,21.10722469]
[1747600122662,28.6445397,165.91,165.82,51.26040283]
[1747600122864,1.50737853,165.92,165.82,51.26040283]
[1747600123075,28.6445397,165.9,165.82,51.26040283]
[1747600123367,1.50737853,165.92,165.82,51.26040283]
[1747600123844,7.4416,165.93,165.83,26.90159988]
[1747600124035,28.6445397,165.92,165.83,49.02478475]
[1747600125132,28.6445397,165.91,165.83,49.02478475]
[1747600125632,28.6445397,165.91,165.84,21.1046792]
[1747600125832,28.6445397,165.92,165.84,21.1046792]
[1747600126030,28.6445397,165.91,165.84,21.1046792]
[1747600126253,28.6445397,165.88,165.84,21.1046792]
[1747600126454,28.6445397,165.88,165.84,6.02990834]
[1747600126658,1.50707904,165.91,165.84,6.02990834]
[1747600126836,28.6445397,165.89,165.84,6.02990834]
[1747600127232,28.6445397,165.88,165.84,6.02990834]
[1747600128364,1.50707904,165.91,165.84,21.1046792]
[1747600128546,28.6445397,165.9,165.84,21.1046792]
[1747600129246,1.50707904,165.91,165.84,21.1046792]
[1747600129552,28.6445397,165.9,165.84,21.1046792]
[1747600129749,28.6445397,165.89,165.84,21.1046792]
[1747600130768,28.6445397,165.9,165.84,21.1046792]
[1747600130969,28.6445397,165.89,165.84,21.1046792]
[1747600132968,28.6445397,165.9,165.84,21.1046792]
[1747600133750,1.50707904,165.91,165.84,21.1046792]
[1747600133951,28.6445397,165.89,165.84,21.1046792]
[1747600134660,28.6445397,165.9,165.84,21.1046792]
[1747600134964,1.50707904,165.91,165.84,21.1046792]
[1747600135140,28.6445397,165.9,165.84,21.1046792]
[1747600135656,37.593376,165.93,165.84,21.1046792]
[1747600136054,28.6445397,165.93,165.84,21.1046792]
[1747600136373,28.6445397,165.93,165.84,48.00603549]
[1747600136867,29.96,165.94,165.88,26.0]
[1747600137054,29.96,165.94,165.89,21.09831815]
[1747600137256,28.6445397,165.95,165.89,21.09831815]
[1747600138543,1.50698165,165.96,165.89,24.16770932]
[1747600138849,28.6445397,165.94,165.89,24.16770932]
[1747600139977,28.6445397,165.95,165.89,24.16770932]
[1747600140953,28.6445397,165.94,165.89,24.16770932]
[1747600141672,1.50698165,165.96,165.89,24.16770932]
[1747600141976,28.6445397,165.95,165.89,24.16770932]
[1747600142663,28.6445397,165.94,165.89,24.16770932]
[1747600143365,28.6445397,165.93,165.89,24.16770932]
[1747600143875,28.6445397,165.92,165.89,6.0280909]
[1747600144074,26.18220373,165.96,165.89,6.0280909]
[1747600144260,28.6445397,165.92,165.87,47.10086211]
[1747600145158,1.50698165,165.96,165.87,47.10086211]
[1747600145355,28.6445397,165.93,165.87,47.10086211]
[1747600145879,28.6445397,165.93,165.87,50.16188355]
[1747600146078,28.6445397,165.92,165.87,50.16188355]
[1747600146377,28.6445397,165.93,165.87,50.16188355]
[1747600146979,28.6445397,165.94,165.87,50.16188355]
[1747600147373,1.50698165,165.96,165.87,50.16188355]
[1747600147768,28.6445397,165.95,165.87,50.16188355]
[1747600148471,28.6445397,165.96,165.87,80.30597229]
[1747600148784,36.1945397,165.97,165.88,0.90073528]
[1747600148980,28.6445397,165.97,165.88,0.90073528]
[1747600149179,28.6445397,165.97,165.9,26.0]
[1747600149888,1.50674407,165.98,165.9,26.0]
[1747600150096,28.6445397,165.98,165.9,26.0]
[1747600150589,28.6445397,165.97,165.91,21.09577481]
[1747600151415,28.6445397,165.96,165.91,21.09577481]
[1747600153299,1.50654529,165.99,165.91,21.09577481]
[1747600153508,28.6445397,165.96,165.91,21.09577481]
[1747600153886,28.6445397,165.95,165.91,21.09577481]
[1747600155294,28.6445397,165.96,165.91,21.09577481]
[1747600155696,17.81801677,165.96,165.91,21.09577481]
[1747600156400,1.50654529,165.99,165.91,21.09577481]
[1747600156601,7.53102892,165.99,165.91,21.09577481]
[1747600156783,17.81801677,165.96,165.91,21.09577481]
[1747600156985,17.81801677,165.96,165.91,6.02736423]
[1747600157503,17.81801677,165.95,165.91,6.02736423]
[1747600158491,17.81801677,165.97,165.91,6.02736423]
[1747600159103,17.81801677,165.96,165.91,21.09577481]
[1747600161413,17.81801677,165.96,165.91,6.02736423]
[1747600162407,17.81801677,165.95,165.91,6.02736423]
[1747600162646,17.81801677,165.94,165.91,6.02736423]
[1747600163114,7.53217054,165.97,165.91,6.02736423]
[1747600163115,1.50669307,165.97,165.91,6.02736423]
[1747600163290,19.32470984,165.97,165.91,6.02736423]
[1747600163484,1.50669307,165.97,165.91,6.02736423]
[1747600163682,17.81801677,165.97,165.91,6.02736423]
[1747600164298,17.81801677,165.97,165.9,15.06886014]
[1747600164504,82.8066116,166.0,165.91,26.0]
[1747600164709,17.81801677,165.99,165.91,26.0]
[1747600165079,17.81801677,165.98,165.91,26.0]
[1747600165390,4.14932219,166.07,166.01,26.0]
[1747600165592,4.14932219,166.07,166.02,44.64964886]
[1747600165808,4.14932219,166.07,166.02,26.0]
[1747600165991,17.81801677,166.06,166.02,26.0]
[1747600166190,17.81801677,166.05,165.99,43.70811997]
[1747600166380,4.75536987,166.07,166.0,6.02409638]
[1747600166585,4.14932219,166.07,166.0,6.02409638]
[1747600166910,21.96733896,166.07,166.0,28.16636965]
[1747600167110,17.81801677,166.06,166.0,28.16636965]
[1747600167290,4.14932219,166.07,166.0,28.16636965]
[1747600167495,17.81801677,166.03,166.0,28.16636965]
[1747600167691,17.81801677,166.03,166.0,22.14227327]
[1747600167897,17.81801677,166.02,166.0,22.14227327]
[1747600168392,17.81801677,166.03,166.0,22.14227327]
[1747600168912,17.81801677,166.01,166.0,22.14227327]
[1747600170393,23.84175028,166.01,166.0,22.14227327]
[1747600170782,24.44779796,166.01,166.0,22.14227327]
[1747600171508,72.33744682,166.01,166.0,22.14227327]
[1747600171682,101.59744682,166.01,165.91,6.02729663]
[1747600171887,83.77943005,166.01,165.91,6.02729663]
[1747600172088,17.81801677,165.99,165.91,6.02729663]
[1747600172395,18.42406445,165.99,165.91,6.02729663]
[1747600172597,17.81801677,165.98,165.9,50.6773764]
[1747600172803,0.60604768,165.99,165.9,50.6773764]
[1747600172996,17.81801677,165.97,165.9,32.02772754]
[1747600173208,17.81801677,165.96,165.9,32.02772754]
[1747600173506,0.60604768,166.0,165.9,6.02772754]
[1747600173816,17.81801677,165.97,165.9,6.02772754]
[1747600174309,6.63087663,165.98,165.9,6.02772754]
[1747600174499,0.60604768,165.98,165.9,6.02772754]
[1747600174705,17.81801677,165.97,165.9,6.02772754]
[1747600175215,17.81801677,165.96,165.9,6.02772754]
[1747600175512,17.81801677,165.95,165.9,6.02772754]
[1747600176111,6.0244593,165.99,165.9,6.02772754]
[1747600176295,17.81801677,165.96,165.9,6.02772754]
[1747600176494,17.81801677,165.95,165.9,6.02772754]
[1747600177312,0.60604768,166.01,165.92,26.0]
[1747600177502,17.81801677,166.0,165.92,26.0]
[1747600178104,17.81801677,165.99,165.92,26.0]
[1747600178401,17.81801677,165.99,165.93,6.02663773]
[1747600178806,17.81801677,165.97,165.92,6.02694536]
[1747600179119,17.81801677,165.95,165.91,32.02724897]
[1747600179417,0.60604768,165.99,165.91,26.0]
[1747600179618,28.52132869,165.93,165.88,6.0284543]
[1747600180410,28.52132869,165.93,165.84,16.27982986]
[1747600180411,28.52132869,165.91,165.84,6.02990834]
[1747600180729,28.52132869,165.9,165.84,32.02990834]
[1747600181215,28.52132869,165.9,165.84,6.02990834]
[1747600181523,28.52132869,165.93,165.84,35.02882991]
[1747600181721,0.60604768,165.94,165.84,35.02882991]
[1747600181917,28.52132869,165.93,165.84,35.02882991]
[1747600182221,28.52132869,165.92,165.84,35.02882991]
[1747600182417,28.52132869,165.92,165.84,50.10360077]
[1747600183002,34.54838242,165.92,165.84,50.10360077]
[1747600183196,28.52132869,165.91,165.84,35.02882991]
[1747600183697,6.63310141,165.92,165.84,35.02882991]
[1747600183897,35.1544301,165.92,165.84,35.02882991]
[1747600184099,6.63310141,165.92,165.84,35.02882991]
[1747600184304,28.52132869,165.91,165.84,35.02882991]
[1747600184612,28.52132869,165.92,165.84,35.02882991]
[1747600185500,28.52132869,165.91,165.84,35.02882991]
[1747600187421,28.52132869,165.92,165.84,35.02882991]
[1747600187637,28.52132869,165.93,165.84,35.02882991]
[1747600188322,28.52132869,165.93,165.84,50.10360077]
[1747600188620,0.60604768,165.94,165.84,50.10360077]
[1747600188825,28.52132869,165.93,165.84,50.10360077]
[1747600188999,0.60604768,165.94,165.87,26.0]
[1747600189201,110.42737637,165.95,165.88,6.0284543]
[1747600189414,28.52132869,165.94,165.88,6.0284543]
[1747600190323,28.52132869,165.93,165.88,6.0284543]
[1747600190531,28.52132869,165.91,165.84,2.99892157]
[1747600190727,28.52132869,165.88,165.84,6.0297955]
[1747600190900,28.52132869,165.87,165.84,6.0297955]
[1747600191303,28.52132869,165.87,165.83,22.12318487]
[1747600192121,0.60604768,165.91,165.83,22.12318487]
[1747600192442,28.52132869,165.87,165.83,28.15343807]
[1747600193121,29.12737637,165.88,165.83,28.15343807]
[1747600193522,28.52132869,165.87,165.83,22.12318487]
[1747600194226,6.63341191,165.91,165.83,28.15343225]
[1747600194421,28.52132869,165.88,165.83,28.15343225]
[1747600195610,28.52132869,165.88,165.83,22.12318487]
[1747600196110,28.52132869,165.88,165.83,28.15339707]
[1747600196822,6.63418535,165.89,165.83,28.15339707]
[1747600197018,28.52132869,165.88,165.83,28.15339707]
[1747600197210,28.52132869,165.87,165.83,28.15339707]
[1747600197634,28.52132869,165.87,165.83,22.12318487]
[1747600197929,6.63418535,165.89,165.83,22.12318487]
[1747600198136,28.52132869,165.87,165.83,22.12318487]
[1747600199148,28.52132869,165.86,165.83,22.12318487]
[1747600199837,28.52132869,165.87,165.83,22.12318487]
[1747600200339,34.55022276,165.87,165.83,22.12318487]
[1747600200730,29.12737637,165.86,165.83,22.12318487]
[1747600200928,28.52132869,165.85,165.83,22.12318487]
[1747600201138,29.12737637,165.86,165.83,22.12318487]
[1747600201316,28.52132869,165.86,165.83,22.12318487]
[1747600201821,17.84296611,165.86,165.83,22.12318487]
[1747600202138,23.87238621,165.86,165.83,22.12318487]
[1747600202333,17.84296611,165.84,165.83,22.12318487]
[1747600202721,18.44901379,165.84,165.75,6.03315881]
[1747600203021,2.39464235,165.84,165.74,6.03344583]
[1747600203240,17.84296611,165.8,165.74,6.03344583]
[1747600203912,0.60604768,165.82,165.74,9.09547694]
[1747600204112,17.84296611,165.81,165.74,9.09547694]
[1747600204335,17.84296611,165.8,165.74,6.03344583]
[1747600204536,0.60604768,165.81,165.74,6.03344583]
[1747600204730,18.44901379,165.81,165.74,6.03344583]
[1747600204931,17.84296611,165.79,165.74,6.03344583]
[1747600205524,17.84296611,165.77,165.72,6.03423581]
[1747600205725,17.84296611,165.76,165.72,6.03423581]
[1747600206038,17.84296611,165.76,165.7,3.642]
[1747600206039,17.84296611,165.76,165.71,6.03459774]
[1747600206742,0.60604768,165.78,165.71,6.03459774]
[1747600206936,17.84296611,165.76,165.71,6.03459774]
[1747600207522,0.60604768,165.81,165.71,6.03459774]
[1747600207735,17.84296611,165.78,165.71,6.03459774]
[1747600208028,6.63732567,165.81,165.71,6.03459774]
[1747600208029,17.84296611,165.75,165.71,6.03459774]
[1747600208223,17.84296611,165.72,165.68,6.03573153]
[1747600208431,17.84296611,165.73,165.68,6.03573153]
[1747600209347,17.84296611,165.72,165.66,34.56832611]
[1747600209550,0.60604768,165.72,165.66,34.56832611]
[1747600209735,0.60604768,165.75,165.66,60.56832611]
[1747600210053,17.84296611,165.72,165.66,60.56832611]
[1747600210252,0.60604768,165.75,165.66,63.57418168]
[1747600210453,17.84296611,165.69,165.66,34.56832611]
[1747600210749,17.84296611,165.67,165.66,34.56832611]